Cogmind - Beta 13 @@@ ROGUE MODE // 2024.05.18 @ 16:13:53 Player: BatSpy Result: Destroyed by D-53 Grenadier with Mini Grenade Launcher Performance ------------- Evolutions (0) 0 Regions Visited (2) 400 Robots Destroyed (12) 60 Value Destroyed (362) 362 Prototype IDs (2) 40 Alien Tech Used (0) 0 Bonus (0) 0 TOTAL SCORE: 862 Bonus ------- None Cogmind --------- Core Integrity 0/250 Matter 298/300 Energy 100/100 System Corruption 1% Temperature Cool (0) Movement Flying (200) Ox2 Location -10/Mines Parts ------- > --- POWER (1) -------- (None) > --- PROPULSION (2) --- Flight Unit > --- UTILITY (2) ------ Medium Storage Unit > --- WEAPON (2) ------- (None) > --- INVENTORY (10) --- Aluminum Leg Heat Sink Improved Heat Sink Propulsion Shielding Propulsion Shielding Peak State ------------ > --- POWER ------------ Ion Engine > --- PROPULSION ------- Aluminum Leg Aluminum Leg > --- UTILITY ---------- Improved Heat Sink Propulsion Shielding > --- WEAPON ----------- Medium Laser Small Laser > --- INVENTORY -------- Ion Engine Small Storage Unit Medium Storage Unit Propulsion Shielding Small Laser [Rating: 9] Favorites ----------- Power Ion Engine Engine Ion Engine Power Core Light Nuclear Core Propulsion Flight Unit Leg Aluminum Leg Flight Unit Flight Unit Utility Propulsion Shielding Device Seismic Detector Storage Medium Storage Unit Protection Propulsion Shielding Weapon Small Laser Energy Gun Small Laser Build | -11 -10 -10 ------- Run | Yrd Mat Min Slots Evolved . | . . . Power . | . . . Propulsion . | . . . Utility . | . . . Weapon . | . . . Parts Attached 23 | 5 15 3 Power 3 | 1 1 1 Engine 2 | 1 1 . Core 1 | . . 1 Reactor . | . . . Propulsion 8 | 2 5 1 Treads . | . . . Leg 4 | 2 2 . Wheel . | . . . Hover . | . . . Flight 4 | . 3 1 Utility 8 | . 7 1 Device 3 | . 2 1 Storage 3 | . 3 . Processor . | . . . Hackware . | . . . Protection 2 | . 2 . Artifact . | . . . Weapon 4 | 2 2 . Energy Gun 4 | 2 2 . Energy Cannon . | . . . Ballistic Gun . | . . . Ballistic Cannon . | . . . Launcher . | . . . Special Weapon . | . . . Impact Weapon . | . . . Slashing Weapon . | . . . Piercing Weapon . | . . . Special Melee Weapon . | . . . Unidentified Prototypes . | . . . Parts Lost 7 | . 1 6 Power 1 | . . 1 Propulsion 3 | . 1 2 Utility 1 | . . 1 Weapon 2 | . . 2 Highest Loss Streak 6 | . 1 6 To Critical Strikes . | . . . Average Slot Usage (%) 96 | . 95 98 Engine 9 | . 14 . Core 4 | . . 14 Leg 11 | . 15 . Flight 16 | . 12 27 Device 3 | . . 10 Storage 10 | . 8 14 Protection 11 | . 14 3 Energy Gun 27 | . 28 27 Naked Turns . | . . . Heaviest Build 19 | 8 19 19 Greatest Support 20 | 20 20 8 Greatest Overweight (x) 3 | . 2 3 Average Overweight (x) . | . . 2 Largest Inventory Capacity 10 | 5 10 10 Average Capacity 7 | 5 7 10 Most Carried 8 | 5 8 7 Average Carried 5 | 1 5 5 Final Capacity 10 | 5 10 10 Final Carried 7 | 1 7 5 Class Distribution -------------------- 100% | Mutant Dominant Class ---------------- Mutant | -10/Materials Mutant | -10/Mines Resources | -11 -10 -10 ----------- Run | Yrd Mat Min Matter Collected 402 | 239 149 14 Remotely . | . . . Salvage Created 446 | . 446 . Parts 20 | . 20 . Haulers Intercepted . | . . . Recyclers Shooed . | . . . Parts Field Recycled . | . . . Retrieved Matter . | . . . Parts Self-Destructed . | . . . Prevented . | . . . Kills | -11 -10 -10 ------- Run | Yrd Mat Min Combat Hostiles Destroyed 12 | . 12 . Guns 12 | . 12 . Classes Destroyed 2 | . 2 . Swarmer 3 | . 3 . Grunt 9 | . 9 . Best Kill Streak 3 | . 3 . Combat Bots Only 3 | . 3 . Max Kills in Single Turn 1 | . 1 . Gunslinging . | . . . Exploded . | . . . Melee . | . . . Uniques/NPCs Destroyed . | . . . Combat | -11 -10 -10 -------- Run | Yrd Mat Min Hostile Shots Fired 82 | . 76 6 Missed 24 | . 23 1 Damage Taken 845 | . 586 259 Core 264 | . 165 99 Absorbed by Shields . | . . . Redirected to Shielding 57 | . 57 . Core Remaining (%) 100 | 100 . . Volleys Fired 54 | . 53 1 Largest 2 | . 2 1 Hottest 90 | . 90 50 Shots Fired 108 | . 106 2 Gun 108 | . 106 2 Cannon . | . . . Launcher . | . . . Special . | . . . Kinetic . | . . . Thermal 108 | . 106 2 Explosive . | . . . Electromagnetic . | . . . Robot Hit Streak 5 | . 5 . Robot Miss Streak 3 | . 3 1 Penetration Max . | . . . Secondary Targets 3 | . 3 . Max Gunslinging Chain 1 | . 1 . Shots Hit Robots 58 | . 58 . Core Hits 27 | . 26 1 Critical Kills . | . . . Critical Parts Destroyed . | . . . Critical Strikes 2 | . 1 1 Burn 2 | . 1 1 Melee Attacks . | . . . Impact . | . . . Slashing . | . . . Piercing . | . . . Sneak Attacks . | . . . Combat Hostiles . | . . . Follow-up Attacks . | . . . Damage Inflicted 686 | . 674 12 Guns 686 | . 674 12 Cannons . | . . . Explosions . | . . . Melee . | . . . Ramming . | . . . Kinetic . | . . . Thermal 686 | . 674 12 Explosive . | . . . Electromagnetic . | . . . Impact . | . . . Slashing . | . . . Piercing . | . . . Highest Corruption 1 | . 1 1 Average Corruption 1 | . 1 1 Corruption Purged . | . . . Corruption Blocked . | . . . Effects 7 | . 2 5 Message Errors 1 | . . 1 Matter Fused 1 | . 1 . Heat Flow Errors 2 | . . 2 Energy Discharges 1 | . . 1 Data Loss (major) 1 | . 1 . Misfires 1 | . . 1 Overload Shots . | . . . Overflow Damage . | . . . Projectiles . | . . . Explosions . | . . . Melee . | . . . Knockbacks . | . . . Impact . | . . . Kinetic . | . . . Secondary . | . . . Self-Inflicted Damage . | . . . Shots . | . . . Rammed . | . . . Targets Rammed . | . . . Kicked . | . . . Crushed . | . . . Highest Temperature 421 | . 421 212 Average Temperature 118 | . 123 77 Received Heat Transfer 294 | . 294 . Effects 2 | . 2 . Shutdowns 1 | . 1 . Damage (minor) 1 | . 1 . Siege Activations . | . . . Robots Corrupted . | . . . Combat Hostiles . | . . . Parts Fried . | . . . Impact Corruptions . | . . . Robots Melted . | . . . Combat Hostiles . | . . . Parts Melted 4 | . 4 . Heat Transferred 1959 | . 1848 111 Parts Sabotaged . | . . . Parts Stolen . | . . . Parts Stripped . | . . . Power Chain Reactions . | . . . Alert | -11 -10 -10 ------- Run | Yrd Mat Min Peak Influence 230 | . 230 . Initial . | . . . Average 43 | . 64 . Maximum Alert Level 1 | . 1 . Low Security (%) 94 | 100 92 100 Level 1 5 | . 7 . Level 2 . | . . . Level 3 . | . . . Level 4 . | . . . Level 5 . | . . . High Security . | . . . Max Security . | . . . Squads Dispatched 2 | . 2 . Investigation 1 | . 1 . Extermination . | . . . Reinforcement 1 | . 1 . Assault . | . . . Garrison . | . . . Intercept . | . . . Searches Triggered . | . . . Construction Impeded . | . . . Haulers Reinforced . | . . . Active Scanning Responses . | . . . Cargo Convoy Interrupts . | . . . Stealth | -11 -10 -10 --------- Run | Yrd Mat Min Distress Signals 2 | . 1 1 Communications Jammed . | . . . Distress Signals . | . . . Times Spotted 21 | . 19 2 Peak Tracking Total 4 | . 4 2 Tactical Retreats 1 | . 1 . Traps | -11 -10 -10 ------- Run | Yrd Mat Min Traps Triggered 2 | . 2 . Indirectly . | . . . Trap Hack Attempts . | . . . Triggered . | . . . Disarmed . | . . . Reprogrammed . | . . . Reused . | . . . Traps Extracted . | . . . Installed . | . . . Triggered . | . . . Machines | -11 -10 -10 ---------- Run | Yrd Mat Min Machines Disabled . | . . . Max in Single Turn . | . . . Machines Repaired . | . . . Machines Dismantled . | . . . Machines Sabotaged . | . . . Overloaded Fab Kills . | . . . Hacking | -11 -10 -10 --------- Run | Yrd Mat Min Machines Accessed 8 | . 8 . Terminals 8 | . 8 . Fabricators . | . . . Repair Stations . | . . . Recycling Units . | . . . Scanalyzers . | . . . Garrison Access . | . . . Total Hacks 19 | . 19 . Successful 11 | . 11 . Failed 8 | . 8 . Catastrophic . | . . . Database Lockouts . | . . . Manual . | . . . Terminals 19 | . 19 . Fabricators . | . . . Repair Stations . | . . . Recycling Units . | . . . Scanalyzers . | . . . Garrison Access . | . . . Terminal Hacks 11 | . 11 . Prototype ID Bank 1 | . 1 . Branch Access Points 1 | . 1 . Terminal Index 1 | . 1 . Alert Level 1 | . 1 . Unreport Threat 1 | . 1 . Locate Traps 3 | . 3 . Dispatch Records 1 | . 1 . Zone Layout 2 | . 2 . Fabricator Hacks . | . . . Repair Station Hacks . | . . . Recycling Unit Hacks . | . . . Scanalyzer . | . . . Garrison Access Hacks . | . . . Unauthorized Hacks . | . . . Terminals . | . . . Fabricators . | . . . Repair Stations . | . . . Recycling Units . | . . . Scanalyzers . | . . . Garrison Access . | . . . Data Cores Recovered . | . . . Used . | . . . Hacking Detections 4 | . 4 . Full Trace Events . | . . . Feedback Events . | . . . Feedback Blocked . | . . . Robot Schematics Acquired . | . . . Robots Built . | . . . Authchips . | . . . Time . | . . . Total Robot Build Rating . | . . . Part Schematics Acquired . | . . . Parts Built . | . . . Authchips . | . . . Time . | . . . Total Part Build Rating . | . . . Parts Repaired . | . . . Time . | . . . Parts Recycled . | . . . Recycled Matter . | . . . Retrieved Matter . | . . . Retrieved Components . | . . . Parts Scanalyzed . | . . . Part Schematics Acquired . | . . . Parts Damaged . | . . . Bothacking | -11 -10 -10 ------------ Run | Yrd Mat Min Used RIF Installer . | . . . Robots Hacked . | . . . Non-combat . | . . . Combat . | . . . Robot Hacks Applied . | . . . Relay Couplers Released . | . . . Fabnet Peak Effective % . | . . . Robots Rewired . | . . . Allies Hacked . | . . . Hacks Repelled . | . . . Allies | -11 -10 -10 -------- Run | Yrd Mat Min Total Allies . | . . . Largest Group . | . . . Highest-Rated Group . | . . . Highest-Rated Ally . | . . . Total Orders . | . . . Ally Attacks . | . . . Total Damage . | . . . Kills . | . . . Allies Corrupted . | . . . Allies Melted . | . . . Intel | -11 -10 -10 ------- Run | Yrd Mat Min Robot Analysis Total . | . . . Derelict Logs Recovered 1 | . . 1 Drone Launches . | . . . Drone Recoveries . | . . . Exploration | -11 -10 -10 ------------- Run | Yrd Mat Min Turns Passed 1229 | 61 833 335 Spaces Moved 672 | 50 486 136 Core 13 | 13 . . Treads . | . . . Legs 342 | 37 305 . Wheels . | . . . Hover . | . . . Flight 317 | . 181 136 Fastest Speed 50 | 50 117 197 Average Speed 140 | 101 128 197 Slowest Speed 280 | 120 197 280 Overloaded Moves . | . . . Propulsion Burnouts . | . . . Robots Hopped . | . . . Cave-ins Triggered . | . . . Exploration Rate (%) 41 | 4 90 31 Regions Visited 2 Branch Regions 1 Pre-discovered Areas . | . . . Known Exits Taken 1 | . 1 . Unknown Exits Taken 1 | 1 . . Scrap Searched 1 | . . 1 Spaces Dug . | . . . Terrain Destroyed . | . . . Melee . | . . . Projectile . | . . . AOE . | . . . Terrain Rammed . | . . . Walls Destroyed . | . . . Machines Disabled . | . . . Actions | -11 -10 -10 --------- Run | Yrd Mat Min Total 850 | 60 589 201 Wait 71 | . 11 60 Move 670 | 49 485 136 Hop . | . . . Pick Up 21 | 6 15 . Fast Attach . | . . . Attach 10 | 5 4 1 Detach 1 | . 1 . Swap 13 | . 11 2 Drop 10 | . 9 1 Fire 54 | . 53 1 Melee . | . . . Ram . | . . . Kick . | . . . Crush . | . . . Escape Stasis . | . . . Rewire . | . . . Trap . | . . . Miscellaneous . | . . . Route ------- -11/Scrapyard -10/Materials (discovered 5 exits: [*Mat x3] / *Min x2) -10/Mines History --------- Turn | Location | Event 8 | -11/Scrapyard | Discovered new exit (range 16) 62 | -11/Scrapyard | Entered Materials 263 | -10/Materials | Discovered new exit (range 5) 309 | -10/Materials | Discovered new exit (range 16) 317 | -10/Materials | Build established: Mutant 411 | -10/Materials | Core integrity fell below 50% 447 | -10/Materials | Discovered new exit (range 9) 464 | -10/Materials | Identified exit to Mines 756 | -10/Materials | Discovered new exit (range 15) 895 | -10/Materials | Entered Mines 965 | -10/Mines | Assembled infested the area 1158 | -10/Mines | Learned 2 Materials zone layouts 1229 | -10/Mines | Core integrity fell below 20% 1230 | -10/Mines | Destroyed by D-53 Grenadier with Mini Grenade Launcher Last Messages --------------- Acquired derelict log, extracted data. Data stored: Materials zone layouts (x2). K-01 Serf collects debris. K-01 Serf destroyed. 1 SJ5JTJJPY:<8PM6TL8QL673 Searching scrap... Found Heat Sink. Found Hammer. Found Terrain Scanner. Found Lgt. Armor Plating. Found 14 Matter. Acquired 14 matter. Sml. Laser destroyed. D-53 Grenadier suffers critical hit (Burn). Flight Unit destroyed. Med. Laser destroyed. Flight Unit destroyed. Seismic Detector destroyed. The unstable cave ceiling collapses. Lgt. Nuclear Core destroyed. Map ----- +----------------------------------------------------+ | ????????????????????????????????????????? #?????? | | ????????????????????????????????????????? #?????? | | ????????????????????????????????????????? #?????? | | ????????????????????????????????????????? $##????? | | ????????????????????????????????????????? !%##???? | | ???????????????????????????????????????## !*!##??? | | ??????????????????????????????????????## %%=##?? | | ????????????????????????????????####??# =! ##? | | ???????????????????????????????## #### #? | | ????????????????????????????#### ## #? | | ?????????????????????????#### #? | | ???????????????????????### ### ##? | | ??????????????????????## ## ##???##?? | | ??????????????????????# #### ##???????? | | ??????????????????????# ######??# #????????? | | ??????????????????????# ##???????# #????????? | | ??????????????????????## !!##????????# #????????? | | ???????????????????????### #??####???# ##???????? | | ?????????????????????????#!#?## ##### ##?#####? | | ???????????????????????###/#?# ## ### ## | | ??????????????????????## ### ## # | | ?????????????????????## # ### """ | | ?????????????????????# # #####?# """ | | ????????????????????## ##????## """ | | ?????????????????#### # ##????## | | ?????????? @ ##????# ### | | ?????????? dd ###### ##?? | | ????????????######### """ #??? | | ????????????????????## # # """ #??? | | ?????????????????????##### ### """ ###### #??? | | ??????????????????????????##?# #???## ##??? | | ?????????????????????????????## #??## ###### | | ??????????????????????????????## ##??# ### | | ???????????????????????????????#####???# ## | | ???????????????????????????????????????# ## | | ?????????????????????????????????#####?## ##?# | | ???????????????????????????????### ##?# #?## | | ??????????????????????????????## #?# #?# | | ?????????????????????????????## ### ### | | ????????????????????????????## ## ## | | ??????????????????????????### | | ??????????????????????????# ### """ ## | | ??????????????????????????## ##?## """ ##? | | ???????????????????????????####????## """ ##?? | | ????????????????????????????????????## ##??? | | ?????????????????????????????????????#########???? | | ?????????????????????????????????????????????????? | | | | | | | +----------------------------------------------------+ Best States ------------- Heat Dissipation 39 Energy Generation 14 Energy Capacity 250 Matter Stores 300 Matter Capacity 300 Sight Range 16 Terrain Scan Density 10 Propulsion Shielding 33 Evasion (%) 55 Item Schematics ----------------- None Robot Schematics ------------------ None Fabricated ------------ Nothing Alien Tech Used ----------------- None Achievements -------------- None Challenges ------------ None Game ------ Seed FortressHackingSuperbattery Manual? 0 Play Time 00:11:50 Cumulative 12.4 hours Start 2024.05.18 @ 01:12:08 End 2024.05.18 @ 16:13:53 Sessions 2 Manual Loads 0 Difficulty Rogue Special Mode None Game No. 21 Rogue 21 Adventurer 0 Explorer 0 Win Type - Total 0 Types 0/0/0/0/0/0/0/0/0 Lore% 20 Gallery% 25 Achievement% 22 Wizard Run 0 Options --------- Layout 1 ASCII 0 Keyboard 0 Movement Mouse Keybinds 0 Fullscreen 2 Font 32/SmallcapsGlow Map View 50x35 Zoom Use 0% Tactical HUD 0 Map Filters NONE Filters NONE Steam 1 RUN: 2de65e17-c58f-471e-81e7-2dfd0ef80d49